{"text_format":"1","workbook":"xlsx","n_sheets":3,"sheets":["Feuil1","Feuil2","Feuil3"],"not_rendered":{"charts":0,"images":1,"macros":1,"external_links":0,"defined_names":0,"comments":0,"pivot_tables":0},"unopened":[],"bounds":{"document_bytes":16777216,"sheet_cells":100000,"rows_first":2000,"rows_last":500,"rows_between":2000,"halvings":0,"cell_chars":16384,"cell_head_chars":4096},"cells_cut":0,"cells_raw":0,"read":"whole","date_system":"1900"}

{"sheet":"Feuil1","index":0,"n_rows":38,"n_cols":17,"rows_kept":38,"cut":false,"hidden":false,"merged":[]}
[3,1,1,1,3,2,1,1,null,"Numéros","Transversale","Sixain","Douzaine","Colonne","NR","PI","MP"]
[5,2,1,1,2,2,1,1,null,0,0,0,0,0,0,0,0]
[14,5,3,2,2,2,2,1,null,{"$f":"J2+1","v":1},1,1,1,1,2,1,1]
[17,6,3,2,2,1,1,1,null,{"$f":"J3+1","v":2},1,1,1,2,1,2,1]
[5,2,1,1,2,2,1,1,null,3,1,1,1,3,2,1,1]
[32,11,6,3,2,2,2,2,null,4,2,1,1,1,1,2,1]
[null,null,null,null,null,null,null,null,null,5,2,1,1,2,2,1,1]
[null,null,null,null,null,null,null,null,null,6,2,1,1,3,1,2,1]
[null,null,null,null,null,null,null,null,null,7,3,2,1,1,2,1,1]
[null,null,null,null,null,null,null,null,null,8,3,2,1,2,1,2,1]
[null,null,null,null,null,null,null,null,null,9,3,2,1,3,2,1,1]
[null,null,null,null,null,null,null,null,null,10,4,2,1,1,1,2,1]
[null,null,null,null,null,null,null,null,null,11,4,2,1,2,1,1,1]
[null,null,null,null,null,null,null,null,null,12,4,2,1,3,2,2,1]
[null,null,null,null,null,null,null,null,null,13,5,3,2,1,1,1,1]
[null,null,null,null,null,null,null,null,null,14,5,3,2,2,2,2,1]
[null,null,null,null,null,null,null,null,null,15,5,3,2,3,1,1,1]
[null,null,null,null,null,null,null,null,null,16,6,3,2,1,2,2,1]
[null,null,null,null,null,null,null,null,null,17,6,3,2,2,1,1,1]
[null,null,null,null,null,null,null,null,null,18,6,3,2,3,2,2,1]
[null,null,null,null,null,null,null,null,null,19,7,4,2,1,2,1,2]
[null,null,null,null,null,null,null,null,null,20,7,4,2,2,1,2,2]
[null,null,null,null,null,null,null,null,null,21,7,4,2,3,2,1,2]
[null,null,null,null,null,null,null,null,null,22,8,4,2,1,1,2,2]
[null,null,null,null,null,null,null,null,null,23,8,4,2,2,2,1,2]
[null,null,null,null,null,null,null,null,null,24,8,4,2,3,1,2,2]
[null,null,null,null,null,null,null,null,null,25,9,5,3,1,2,1,2]
[null,null,null,null,null,null,null,null,null,26,9,5,3,2,1,2,2]
[null,null,null,null,null,null,null,null,null,27,9,5,3,3,2,1,2]
[null,null,null,null,null,null,null,null,null,28,10,5,3,1,1,2,2]
[null,null,null,null,null,null,null,null,null,29,10,5,3,2,1,1,2]
[null,null,null,null,null,null,null,null,null,30,10,5,3,3,2,2,2]
[null,null,null,null,null,null,null,null,null,31,11,6,3,1,1,1,2]
[null,null,null,null,null,null,null,null,null,32,11,6,3,2,2,2,2]
[null,null,null,null,null,null,null,null,null,33,11,6,3,3,1,1,2]
[null,null,null,null,null,null,null,null,null,34,12,6,3,1,2,2,2]
[null,null,null,null,null,null,null,null,null,35,12,6,3,2,1,1,2]
[null,null,null,null,null,null,null,null,null,36,12,6,3,3,2,2,2]

{"sheet":"Feuil2","index":1,"n_rows":0,"n_cols":0,"rows_kept":0,"cut":false,"hidden":false,"merged":[]}

{"sheet":"Feuil3","index":2,"n_rows":0,"n_cols":0,"rows_kept":0,"cut":false,"hidden":false,"merged":[]}